fUSD/lending_fUSD_20240920
["ID","MTS","AMOUNT","RATE_DAILY","PERIOD"]
[338657937,1726854112819,250.0,0.00011892,2]
[338657938,1726854190735,156.47,0.00011895,2]
[338657939,1726854226456,155.38,0.00011895,2]
[338657940,1726854226717,155.38,0.00011905,2]
[338657941,1726854226959,155.38,0.00011915,2]
[338657942,1726854227212,155.38,0.00011924,2]
[338657943,1726854227471,155.38,0.00011934,2]
[338657944,1726854227699,155.38,0.00011944,2]
[338657945,1726854228216,155.38,0.00011954,2]
[338657946,1726854252656,250.0,0.00011915,2]
[338657947,1726854272840,153.65,0.000149,31]
[338657948,1726854272905,153.65,0.000149,31]
[338657949,1726854272997,153.65,0.000149,31]
[338657950,1726854273027,153.65,0.000149,31]
[338657951,1726854273091,153.65,0.000149,31]
[338657952,1726854273137,153.65,0.000149,31]
[338657953,1726854273201,153.65,0.000149,31]
[338657954,1726854285783,150.0,0.00011929,2]
[338657955,1726854371608,562.43,0.00011895,2]
[338657956,1726854384941,233.89,0.00011904,2]
[338657957,1726854415307,169.5,0.00010959,2]
[338657959,1726854524947,840.0,0.0001192,2]
[338657960,1726854600583,1050.0,0.00011,2]
[338657973,1726854631852,-284.78,0.00012315,2]
[338657974,1726854631861,-421.82607012,0.00012333,2]
[338657975,1726854631911,-556.90786136,0.00012333,2]
[338657976,1726854631921,-152.0,0.00012395,3]
[338657977,1726854631931,-150.0,0.00012727,2]
[338657978,1726854631941,-150.0,0.00012767,2]
[338657979,1726854631950,-491.09213864,0.0001279,2]
[338657980,1726854631972,-8.89786136,0.0001279,2]
[338657981,1726854631982,-192.1740594,0.00012795,2]
[338657982,1726854631992,-2054.36937644,0.000128,2]
[338657983,1726854632002,-1673.0,0.000128,2]
[338657984,1726854632011,-151.63094035,0.000128,2]
[338657985,1726854632022,-151.63094034,0.0001282,2]
[338657986,1726854632032,-150.0,0.00012822,2]
[338657987,1726854632041,-3651.37,0.00012822,2]
[338657988,1726854632050,-150.0,0.0001283,2]
[338657989,1726854632060,-151.63094034,0.0001284,2]
[338657990,1726854632069,-151.63094034,0.0001286,2]
[338657991,1726854632078,-150.0,0.00012872,2]
[338657992,1726854632087,-500.0,0.00012873,2]
[338657993,1726854632099,-151.63094034,0.0001288,2]
[338657994,1726854632108,-243548.48475956,0.0001289,2]
[338657995,1726854632117,-150.0,0.00012895,2]
[338657996,1726854632126,-500.0,0.00012896,2]
[338657997,1726854632136,-200.0,0.00012896,2]
[338657998,1726854632146,-1759.4468,0.000129,2]
[338657999,1726854632155,-4894.2571,0.000129,2]
[338658000,1726854632165,-2001.1252,0.000129,2]
[338658001,1726854632175,-460.50698805,0.000129,2]
[338658002,1726854632367,-13769.84011195,0.000129,2]
[338658003,1726854632377,-400.8773,0.000129,2]
[338658004,1726854632387,-98672.78633399,0.000129,2]
[338658005,1726854632398,-4323.2981871,0.000129,2]
[338658006,1726854632409,-1012.2128544,0.000129,2]
[338658007,1726854632420,-13940.47675511,0.000129,2]
[338658017,1726854637964,-1231.76374629,0.000129,2]
[338658018,1726854637977,-57703.87882311,0.000129,2]
[338658019,1726854637989,-172.529219,0.000129,2]
[338658020,1726854637999,-961.76416227,0.000129,2]
[338658021,1726854638008,-6237.7233,0.000129,2]
[338658022,1726854638018,-1420.05753133,0.000129,2]
[338658023,1726854638027,-151.63094034,0.000129,2]
[338658024,1726854638036,-193.68772911,0.000129,2]
[338658025,1726854638046,-150.0,0.0001292,2]
[338658026,1726854638055,-150.0,0.00012924,2]
[338658027,1726854638064,-296.87106809,0.0001293,2]
[338658028,1726854638073,-150.0,0.00012932,2]
[338658029,1726854638082,-150.0,0.00012937,2]
[338658030,1726854638092,-500.0,0.00012973,2]
[338658031,1726854638103,-500.0,0.00012973,2]
[338658032,1726854638112,-500.0,0.00012973,2]
[338658033,1726854638122,-350.784,0.00012973,2]
[338658034,1726854638131,-177.526,0.00012973,2]
[338658036,1726854638140,-152.02,0.00012976,2]
[338658038,1726854638150,-192.17405939,0.00012984,2]
[338658040,1726854638159,-582.0,0.00012986,2]
[338658042,1726854638169,-100193.0,0.00012986,2]
[338658044,1726854638178,-202.05770887,0.0001299,2]
[338658046,1726854638188,-202.05770887,0.0001299,2]
[338658048,1726854638198,-152.02,0.0001299,2]
[338658050,1726854638207,-152.02,0.0001299,2]
[338658052,1726854638216,-1443.0221383,0.00012996,2]
[338658054,1726854638226,-8138.1829134,0.00012996,2]
[338658056,1726854638235,-5447.829983,0.00012996,2]
[338658058,1726854638246,-150.0,0.00012998,2]
[338658060,1726854638255,-155.82709448,0.00012999,2]
[338658061,1726854638264,-2000.0,0.00012999,2]
[338658064,1726854638274,-603.0,0.00012999,2]
[338658066,1726854638285,-58594.45315838,0.00013,2]
[338658068,1726854638296,-1381.18119573,0.00013,2]
[338658070,1726854638306,-659.16927993,0.00013,2]
[338658072,1726854638315,-334599.33915663,0.00013,2]
[338658077,1726854638356,-364.55288824,0.00013,2]
[338658079,1726854638367,-7299.54777148,0.00013,2]
[338658232,1726854639889,-386.89735445,0.00013,2]
[338658233,1726854639949,-26796.58872506,0.00013,2]
[338658234,1726854639960,-614.57179749,0.00013,2]
[338658237,1726854640017,-40435.81690446,0.00013,2]
[338658244,1726854640072,-834.30484756,0.00013,2]
[338658246,1726854640083,-414.43182781,0.00013,2]
[338658533,1726854642896,-28350.0,0.00013,2]
[338658535,1726854642908,-13442.43320798,0.00013,2]
[338658537,1726854642920,-1667.5,0.00013,2]
[338658548,1726854643014,-114593.07855188,0.00013,2]
[338658549,1726854643024,-1841494.32298592,0.00013,2]
[338658551,1726854643033,-474153.47326938,0.00013,2]
[338658556,1726854643072,-22982.3562768,0.00013,2]
[338658558,1726854643084,-116260.0,0.00013,2]
[338658560,1726854643095,-127280.0,0.00013,2]
[338658570,1726854643187,-2894.76552035,0.00013,2]
[338658818,1726854645821,-547.51,0.00013,2]
[338658831,1726854645933,-7254.35009782,0.00013,2]
[338658833,1726854645945,-2064.71264005,0.00013,2]
[338658836,1726854645956,-611.81478294,0.00013,2]
[338658846,1726854646047,-1176.6799996,0.00013,2]
[338658853,1726854646108,-3352.26928,0.00013,2]
[338659202,1726854691898,326.85,0.00010414,2]
[338659204,1726854807945,290.46,0.00012006,2]
[338659205,1726854851777,200.0,0.00011994,2]
[338659206,1726854877081,153.66,0.000149,31]
[338659207,1726854877138,153.66,0.000149,31]
[338659208,1726854877197,153.66,0.000149,31]
[338659209,1726854877263,153.66,0.000149,31]
[338659210,1726854877321,153.66,0.000149,31]
[338659211,1726854877375,153.66,0.000149,31]
[338659212,1726854877438,153.66,0.000149,31]
[338659213,1726854915681,250.0,0.00011953,2]
[338659214,1726854986797,175.99,0.00011946,2]
[338659215,1726855113795,1412.98,0.00011939,2]
[338659216,1726855249569,383737.36031187,0.000119,6]
[338659217,1726855264940,329.32,9.993e-05,2]
[338659218,1726855306643,897.42,0.00011883,2]
[338659219,1726855341909,500.0,0.00011883,2]
[338659220,1726855388191,155.99,0.00011887,2]
[338659221,1726855453262,250.0,0.0001188,2]
[338659222,1726855481109,153.69,0.000149,31]
[338659223,1726855481141,153.69,0.000149,31]
[338659224,1726855481179,153.69,0.000149,31]
[338659225,1726855481241,153.69,0.000149,31]
[338659226,1726855481301,153.69,0.000149,31]
[338659227,1726855481360,153.69,0.000149,31]
[338659228,1726855481434,153.69,0.000149,31]
[338659229,1726855510029,250.0,0.00011887,2]
[338659230,1726855568132,233.89,0.00011876,2]
[338659231,1726855597350,21062.68,0.00011884,2]
[338659232,1726855602114,1000.0,0.00011884,2]
[338659234,1726855748561,-163.37,0.00012083,2]
[338659235,1726855748583,-375.75015369,0.00012103,2]
[338659236,1726855748613,-164.222117,0.00012203,2]
[338659237,1726855748638,-273.130806,0.00012203,2]
[338659238,1726855748665,-23.52692331,0.00012203,2]
[338659239,1726855805343,331.24,9.983e-05,2]
[338659249,1726855832123,-163.37,0.00012193,2]
[338659250,1726855832134,-144.77972569,0.00012203,2]
[338659251,1726855832143,-182.302391,0.00012203,2]
[338659252,1726855832153,-331.24,0.00012247,2]
[338659253,1726855832162,-27.74763493,0.00012355,2]
[338659254,1726855832173,-140.55901407,0.00012355,2]
[338659255,1726855832183,-182.302391,0.00012406,2]
[338659256,1726855832192,-168.306649,0.00012508,2]
[338659257,1726855832203,-164.222117,0.00012508,2]
[338659258,1726855832212,-182.302391,0.00012609,2]
[338659259,1726855832221,-300.0,0.00012659,2]
[338659260,1726855832231,-168.306649,0.0001266,2]
[338659261,1726855832240,-499.99,0.0001266,2]
[338659262,1726855832249,-2366.72589108,0.0001266,2]
[338659263,1726855832261,-9.15410892,0.0001266,2]
[338659264,1726855832271,-163.37,0.0001268,2]
[338659265,1726855832280,-767.94994205,0.0001269,2]
[338659266,1726855832292,-1709.87048133,0.0001269,2]
[338659267,1726855832306,-1754.60957662,0.0001269,2]
[338659268,1726855832315,-150.0,0.000127,2]
[338659269,1726855832325,-150.0,0.00012776,2]
[338659270,1726855832337,-5861.2,0.0001279,2]
[338659271,1726855832348,-150.0,0.000128,2]
[338659272,1726855832357,-150.0,0.000128,2]
[338659273,1726855832368,-168.306649,0.00012813,2]
[338659274,1726855832378,-164.222117,0.00012813,2]
[338659275,1726855832387,-182.302391,0.00012813,2]
[338659276,1726855832396,-150.0,0.00012844,2]
[338659277,1726855832405,-163.37,0.00012886,2]
[338659278,1726855832415,-163.37,0.00012889,2]
[338659279,1726855832424,-500.0,0.00012896,2]
[338659280,1726855832435,-200.0,0.00012896,2]
[338659281,1726855832446,-9899.999999,0.00012899,7]
[338659282,1726855832456,-3254.7639,0.000129,2]
[338659283,1726855832465,-300.06,0.000129,2]
[338659284,1726855832477,-1553.25194801,0.000129,2]
[338659285,1726855832486,-995.4,0.000129,2]
[338659286,1726855832497,-300.0,0.00012916,2]
[338659287,1726855832508,-150.0,0.00012916,2]
[338659288,1726855832518,-150.0,0.00012926,2]
[338659289,1726855832530,-150.0,0.00012944,2]
[338659290,1726855832540,-152.03,0.0001299,2]
[338659291,1726855832551,-152.03,0.0001299,2]
[338659292,1726855832561,-206.9547149,0.0001299,2]
[338659293,1726855832570,-206.9547149,0.0001299,2]
[338659294,1726855832579,-206.9547149,0.0001299,2]
[338659295,1726855832588,-421.437,0.00012995,2]
[338659296,1726855832597,-171.955,0.00012995,2]
[338659297,1726855832606,-599.0797038,0.00012996,2]
[338659298,1726855832615,-4290.4569703,0.00012996,2]
[338659299,1726855832624,-182.3871457,0.00012996,2]
[338659300,1726855832633,-7461.9191158,0.00012996,2]
[338659301,1726855832643,-327.277421,0.00012996,2]
[338659302,1726855832652,-155.82709448,0.00012999,2]
[338659303,1726855832661,-2000.0,0.00012999,2]
[338659304,1726855832670,-602.0,0.00013,2]
[338659305,1726855832679,-195036.86552253,0.00013,2]
[338659306,1726855832691,-571.98754992,0.00013,2]
[338659307,1726855832702,-10257.31607062,0.00013,2]
[338659308,1726855832712,-25772.68687783,0.00013,2]
[338659309,1726855832723,-1451.24090158,0.00013,2]
[338659310,1726855832738,-3700.0,0.00013,2]
[338659318,1726855838099,-500.0,0.00012973,2]
[338659320,1726855838110,-184.16121051,0.00013,2]
[338659324,1726855838196,-255.53745705,0.00013,2]
[338659325,1726855838208,-1500.0,0.00013,2]
[338659326,1726855838220,-213469.4055048,0.00013,2]
[338659327,1726855838230,-200410.75483279,0.00013,2]
[338659328,1726855838316,-1458.4,0.00013,2]
[338659363,1726855840138,-597.0,0.00013,2]
[338659364,1726855840147,-5657.0,0.00013,2]
[338659365,1726855840159,-346.014951,0.00013,2]
[338659366,1726855840170,-873.56457561,0.00013,2]
[338659367,1726855842511,-28413.12954961,0.00013,2]
[338659387,1726855843180,-720.70825157,0.00013,2]
[338659390,1726855843195,-1250.0,0.00013,2]
[338659397,1726855843345,-116800.0,0.00013,2]
[338659398,1726855843356,-60140.72194339,0.00013,2]
[338659399,1726855843424,-7515.06756,0.00013,2]
[338659661,1726855846114,-2885.9554602,0.00012996,2]
[338659663,1726855846124,-537.0,0.00013,2]
[338659665,1726855846134,-108949.73232328,0.00013,2]
[338659667,1726855846143,-217.0,0.00013,2]
[338659669,1726855846152,-217.0,0.00013,2]
[338659671,1726855846161,-202.0,0.00013,2]
[338659673,1726855846170,-202.0,0.00013,2]
[338659675,1726855846179,-202.0,0.00013,2]
[338659677,1726855846189,-202.0,0.00013,2]
[338659679,1726855846199,-202.0,0.00013,2]
[338659681,1726855846208,-202.0,0.00013,2]
[338659683,1726855846223,-202.0,0.00013,2]
[338659685,1726855846234,-202.0,0.00013,2]
[338659687,1726855846244,-202.0,0.00013,2]
[338659689,1726855846253,-202.0,0.00013,2]
[338659692,1726855846263,-202.0,0.00013,2]
[338659694,1726855846273,-1000.0,0.00013,2]
[338659695,1726855846282,-1000.0,0.00013,2]
[338659698,1726855846293,-1000.0,0.00013,2]
[338659699,1726855846302,-1000.0,0.00013,2]
[338659702,1726855846312,-1000.0,0.00013,2]
[338659704,1726855846321,-1000.0,0.00013,2]
[338659706,1726855846331,-1000.0,0.00013,2]
[338659708,1726855846340,-1000.0,0.00013,2]
[338659709,1726855846350,-1000.0,0.00013,2]
[338659711,1726855846359,-1000.0,0.00013,2]
[338659714,1726855846370,-1000.0,0.00013,2]
[338659716,1726855846379,-1000.0,0.00013,2]
[338659718,1726855846389,-1000.0,0.00013,2]
[338659719,1726855846398,-1000.0,0.00013,2]
[338659722,1726855846407,-475.74559944,0.00013,2]
[338659724,1726855846417,-225.0,0.00013,2]
[338659726,1726855846426,-199.0,0.00013,2]
[338659727,1726855846435,-199.0,0.00013,2]
[338659730,1726855846444,-199.0,0.00013,2]
[338659732,1726855846454,-402077.08702527,0.00013,2]
[338659734,1726855846472,-1566.58939,0.00013,2]
[338659737,1726855846491,-253.7440002,0.00013,2]
[338659915,1726855861743,500.0,0.00012,2]
[338659916,1726855862497,500.0,0.00012,2]
[338659917,1726855862534,500.0,0.00012,2]
[338659918,1726855863257,500.0,0.00012,2]
[338659919,1726855863309,500.0,0.00012,2]
[338659920,1726855864076,500.0,0.00012,2]
[338659921,1726855864160,500.0,0.00012,2]
[338659922,1726855864887,500.0,0.00012,2]
[338659923,1726855864921,500.0,0.00012,2]
[338659924,1726855865689,500.0,0.00012,2]
[338659925,1726855866524,500.0,0.00012,2]
[338659926,1726855920659,500.0,0.00011164,2]
[338659927,1726855930127,500.0,0.00012,2]
[338659928,1726855930888,500.0,0.00012,2]
[338659929,1726855931639,500.0,0.00012,2]
[338659930,1726855931734,500.0,0.00012,2]
[338659931,1726855932395,500.0,0.00012,2]
[338659932,1726855932518,500.0,0.00012,2]
[338659933,1726855933198,500.0,0.00012,2]
[338659934,1726855933283,500.0,0.00012,2]
[338659935,1726855933983,500.0,0.00012,2]
[338659936,1726855934046,500.0,0.00012,2]
[338659937,1726855934730,500.0,0.00012,2]
[338659938,1726855934798,500.0,0.00012,2]
[338659939,1726855935483,500.0,0.00012,2]
[338659940,1726855935600,500.0,0.00012,2]
[338659941,1726855936248,500.0,0.00012,2]
[338659942,1726855936365,500.0,0.00012,2]
[338659943,1726855937006,500.0,0.00012,2]
[338659944,1726855937128,500.0,0.00012,2]
[338659945,1726855937796,500.0,0.00012,2]
[338659946,1726855938297,500.0,0.00012,2]
[338659947,1726855938555,500.0,0.00012,2]
[338659948,1726855939052,500.0,0.00012,2]
[338659949,1726855939323,500.0,0.00012,2]
[338659950,1726855939813,500.0,0.00012,2]
[338659951,1726855940081,500.0,0.00012,2]
[338659952,1726855940594,500.0,0.00012,2]
[338659953,1726855940875,500.0,0.00012,2]
[338659954,1726855941361,500.0,0.00012,2]
[338659955,1726855941639,500.0,0.00012,2]
[338659956,1726855942129,500.0,0.00012,2]
[338659957,1726855942406,500.0,0.00012,2]
[338659958,1726855942949,500.0,0.00012,2]
[338659959,1726855943166,500.0,0.00012,2]
[338659960,1726855943742,500.0,0.00012,2]
[338659961,1726855943924,365.79,0.00012,2]
[338659962,1726855944893,500.0,0.00012,2]
[338659963,1726855945646,500.0,0.00012,2]
[338659964,1726855946456,500.0,0.00012,2]
[338659965,1726855947175,500.0,0.00012,2]
[338659966,1726855947932,500.0,0.00012,2]
[338659967,1726855948688,500.0,0.00012,2]
[338659968,1726855949439,500.0,0.00012,2]
[338659969,1726855950204,500.0,0.00012,2]
[338659970,1726855950997,500.0,0.00012,2]
[338659971,1726855951775,500.0,0.00012,2]
[338659972,1726855953659,500.0,0.00012,2]
[338659973,1726855954412,500.0,0.00012,2]
[338659974,1726855955158,500.0,0.00012,2]
[338659975,1726855956306,500.0,0.00012,2]
[338659976,1726855957048,500.0,0.00012,2]
[338659977,1726855957811,500.0,0.00012,2]
[338659978,1726855958115,500.0,0.00011164,2]
[338659979,1726855958569,182.91,0.00012,2]
[338659980,1726856049288,240.06,0.00011774,2]
[338659981,1726856070769,250.0,0.00011765,2]
[338659982,1726856083829,153.73,0.000149,31]
[338659983,1726856083885,153.73,0.000149,31]
[338659984,1726856083946,153.73,0.000149,31]
[338659985,1726856084011,153.73,0.000149,31]
[338659986,1726856084069,153.73,0.000149,31]
[338659987,1726856084125,153.73,0.000149,31]
[338659988,1726856084192,153.73,0.000149,31]
[338659989,1726856088704,500.0,0.00012,2]
[338659990,1726856183331,1000.0,0.00022,60]
[338659991,1726856201133,150.0,0.00022999,120]
[338659992,1726856211349,1000.0,0.00011701,2]
[338659993,1726856224462,653.43,0.00011794,2]
[338659994,1726856225611,170.47,0.00010959,2]
[338659995,1726856304187,4709.33912346,0.00012,3]
[338659996,1726856391145,334.15,9.843e-05,2]
[338659998,1726856404306,1050.0,0.00011,2]
[338659999,1726856471302,178.32876384,0.00012007,2]
[338660001,1726856666732,250.0,0.00011776,2]
[338660002,1726856685476,153.81,0.000149,31]
[338660003,1726856685536,153.81,0.000149,31]
[338660004,1726856685593,153.81,0.000149,31]
[338660005,1726856685669,153.81,0.000149,31]
[338660006,1726856685713,153.81,0.000149,31]
[338660007,1726856685772,153.81,0.000149,31]
[338660008,1726856685832,153.81,0.000149,31]
[338660009,1726856723656,154.81,0.00011836,2]
[338660010,1726856723896,154.81,0.00011843,2]
[338660011,1726856724136,154.81,0.00011851,2]
[338660012,1726856724378,154.81,0.00011858,2]
[338660013,1726856724619,154.81,0.00011865,2]
[338660014,1726856724865,154.81,0.00011873,2]
[338660015,1726856725097,154.81,0.0001188,2]
[338660016,1726856725322,154.81,0.00011888,2]
[338660017,1726856725525,154.81,0.00011895,2]
[338660018,1726856766107,982.9545065,0.00023,120]
[338660019,1726856810906,157.97,0.00010959,2]
[338660033,1726856887402,1000.0,0.00011805,2]
[338660043,1726856920734,5010.8842045,0.0001,2]
[338660058,1726857032294,-154.63,0.00012097,2]
[338660060,1726857032303,-334.15,0.00012107,2]
[338660061,1726857032313,-210.383312,0.00012203,2]
[338660062,1726857032323,-182.302392,0.00012203,2]
[338660063,1726857032332,-168.306649,0.00012203,2]
[338660064,1726857032342,-182.302391,0.00012203,2]
[338660065,1726857032351,-1471.43943014,0.0001235,2]
[338660066,1726857032363,-489.71537546,0.0001235,2]
[338660067,1726857032375,-255.78777566,0.0001235,2]
[338660068,1726857032385,-168.306649,0.00012355,2]
[338660069,1726857032395,-182.302391,0.00012406,2]
[338660070,1726857032404,-168.306649,0.00012508,2]
[338660071,1726857032414,-500.0,0.00012534,2]
[338660072,1726857032424,-154.63,0.00012598,2]
[338660073,1726857032433,-611.59,0.00012608,2]
[338660074,1726857032442,-182.302391,0.00012609,2]
[338660075,1726857032453,-168.306649,0.0001266,2]
[338660076,1726857032463,-499.99,0.0001266,2]
[338660077,1726857032472,-1168.80936719,0.0001268,2]
[338660078,1726857032484,-857.65640885,0.0001268,2]
[338660079,1726857032493,-2026.46577603,0.0001268,2]
[338660080,1726857032503,-154.63,0.00012688,2]
[338660081,1726857032512,-151.63094034,0.00012698,2]
[338660082,1726857032522,-1417.14415913,0.00012698,2]
[338660083,1726857032531,-528.35096145,0.00012703,2]
[338660084,1726857032541,-154.63,0.00012769,2]
[338660085,1726857032550,-152.22,0.0001277,2]
[338660086,1726857032559,-154.63,0.0001277,2]
[338660088,1726857032569,-154.63,0.0001277,2]
[338660090,1726857032578,-454.39570048,0.00012773,2]
[338660092,1726857032588,-500.0,0.00012773,2]
[338660094,1726857032597,-495.60950826,0.00012773,2]
[338660096,1726857032606,-200.63136152,0.00012773,2]
[338660098,1726857032615,-561.21663832,0.00012773,2]
[338660100,1726857032625,-150.0,0.00012776,2]
[338660102,1726857032635,-500.0,0.00012779,2]
[338660104,1726857032644,-500.0,0.00012779,2]
[338660105,1726857032654,-386.6062478,0.00012779,2]
[338660107,1726857032663,-150.0,0.00012779,2]
[338660109,1726857032672,-14890.11594256,0.0001278,2]
[338660111,1726857032684,-705250.31976379,0.0001278,2]
[338660113,1726857032694,-150.0,0.00012798,2]
[338660115,1726857032703,-181.45,0.000128,2]
[338660117,1726857032712,-16984.0,0.000128,3]
[338660119,1726857032722,-528.35096145,0.00012802,2]
[338660121,1726857032731,-150.0,0.00012807,2]
[338660122,1726857032740,-168.306649,0.00012813,2]
[338660124,1726857032749,-210.383312,0.00012813,2]
[338660126,1726857032759,-182.302392,0.00012813,2]
[338660128,1726857032768,-182.302391,0.00012813,2]
[338660130,1726857032777,-150.0,0.00012831,2]
[338660132,1726857032786,-228.35410344,0.00012836,2]
[338660134,1726857032796,-1500.0,0.00012857,2]
[338660136,1726857032805,-6087.56969668,0.0001286,7]
[338660138,1726857032814,-11773.87799834,0.0001287,2]
[338660140,1726857032824,-296.87106809,0.00012884,2]
[338660141,1726857032833,-500.0,0.00012896,2]
[338660143,1726857032843,-200.0,0.00012896,2]
[338660145,1726857032852,-1417.14415909,0.00012896,2]
[338660147,1726857032861,-1575.3112,0.000129,2]
[338660149,1726857032871,-1000.0,0.000129,2]
[338660151,1726857032880,-2500.0,0.000129,2]
[338660153,1726857032890,-172.64911628,0.000129,2]
[338660155,1726857032899,-517.56960911,0.000129,2]
[338660157,1726857032908,-175.18324582,0.000129,2]
[338660159,1726857032920,-205.01068911,0.000129,2]
[338660161,1726857032929,-187.019136,0.000129,2]
[338660162,1726857032939,-7500.0,0.000129,2]
[338660165,1726857032949,-528.35096145,0.000129,2]
[338660167,1726857032959,-506.32616636,0.000129,2]
[338660169,1726857032969,-193.68772911,0.000129,2]
[338660171,1726857032978,-41784.86725635,0.000129,2]
[338660172,1726857032987,-506.32616636,0.00012907,2]
[338660175,1726857032998,-506.32616636,0.00012914,2]
[338660176,1726857033008,-150.0,0.00012918,2]
[338660178,1726857033017,-303.8174,0.00012935,2]
[338660179,1726857033027,-300.0,0.0001294,2]
[338660180,1726857033037,-296.3468106,0.00012973,2]
[338660181,1726857033047,-500.0,0.00012973,2]
[338660182,1726857033056,-500.0,0.00012973,2]
[338660183,1726857033066,-203.52738512,0.00012973,2]
[338660184,1726857033075,-537.838,0.00012973,2]
[338660185,1726857033084,-172.651,0.00012973,2]
[338660186,1726857033094,-150.0,0.00012975,2]
[338660187,1726857033104,-150.0,0.00012975,2]
[338660188,1726857033113,-150.0,0.00012982,2]
[338660189,1726857033123,-500.0,0.00012982,2]
[338660190,1726857033133,-6094.81260169,0.00012986,2]
[338660191,1726857033142,-1000.0,0.00012986,2]
[338660192,1726857033152,-152.22,0.0001299,2]
[338660193,1726857033161,-152.22,0.0001299,2]
[338660194,1726857033171,-152.22,0.0001299,2]
[338660195,1726857033180,-152.22,0.0001299,2]
[338660196,1726857033190,-152.22,0.0001299,2]
[338660197,1726857033199,-152.22,0.0001299,2]
[338660198,1726857033209,-500.0,0.00012991,2]
[338660199,1726857033219,-48401.2423065,0.00012996,2]
[338660200,1726857033229,-21563.8031174,0.00012996,2]
[338660201,1726857033238,-7142.88443806,0.00012996,2]
[338660202,1726857033251,-401.78503014,0.00012996,2]
[338660203,1726857033261,-119.96496986,0.00012999,2]
[338660204,1726857033272,-438.58020339,0.00012999,2]
[338660211,1726857038248,-287.45330497,0.00012999,2]
[338660213,1726857038264,-4326.74815113,0.00012999,2]
[338660216,1726857038274,-2462.79192693,0.00012999,2]
[338660219,1726857038283,-2000.0,0.00012999,2]
[338660221,1726857038292,-659.16927993,0.00013,2]
[338660223,1726857038302,-1463.39595644,0.00013,2]
[338660225,1726857038311,-62394.06467367,0.00013,2]
[338660227,1726857038320,-1019582.71288569,0.00013,2]
[338660229,1726857038329,-15018.87,0.00013,2]
[338660231,1726857038339,-857248.15674847,0.00013,2]
[338660232,1726857038350,-8867.96996471,0.00013,2]
[338660261,1726857040604,-1661381.50896756,0.00013,2]
[338660262,1726857040616,-18158.9353055,0.00013,2]
[338660263,1726857040659,-586.37030066,0.0001268,2]
[338660264,1726857040670,-628.03652948,0.0001268,2]
[338660266,1726857040686,-300.0,0.0001268,2]
[338660526,1726857043359,-1376.11910441,0.0001268,2]
[338660535,1726857043441,-20464.29,0.0001268,2]
[338660538,1726857043452,-562.6023957,0.0001268,2]
[338660540,1726857043464,-4246.81921635,0.0001268,2]
[338660542,1726857043475,-942.316296,0.0001268,2]